bitfinex/quotes_ETHUSD_20220305
["timestamp","ask_amount","ask_price","bid_price","bid_amount"]
[1646467060323,3.68904132,2637.6,2637.0,0.0028297]
[1646467060523,1.53330455,2637.5,2637.4,0.00092824]
[1646467060723,1.99030455,2637.5,2637.4,0.00092824]
[1646467061525,1.99030455,2637.5,2636.8,0.0174398]
[1646467061723,1.53330455,2637.4,2637.3,0.00249421]
[1646467061925,1.99030455,2637.4,2637.3,0.00249421]
[1646467062725,3.07706743,2637.4,2637.0,0.07773693]
[1646467062923,1.53330455,2637.3,2637.2,0.00249425]
[1646467063974,1.53330455,2637.3,2636.9,0.07773552]
[1646467064178,1.53330455,2637.3,2637.1,0.00249428]
[1646467065179,1.53330455,2637.3,2636.9,0.07773552]
[1646467065379,1.53330455,2637.3,2637.1,0.00249414]
[1646467065880,1.11107557,2637.0,2636.9,0.07773552]
[1646467069223,1.11107557,2637.0,2636.8,0.01751489]
[1646467070022,1.11107557,2637.0,2636.8,0.0146101]
[1646467071876,1.11107557,2637.0,2636.9,0.07773611]
[1646467072676,0.0024473,2637.0,2636.9,0.07773611]
[1646467073077,0.0024473,2637.0,2636.8,0.0146101]
[1646467073777,0.0024473,2637.0,2636.8,0.01751408]
[1646467074621,0.0024473,2637.0,2636.8,0.0146101]
[1646467075027,0.0024473,2637.0,2636.8,0.01751408]
[1646467075827,0.0024473,2637.0,2636.8,0.0146101]
[1646467076228,0.0024473,2637.0,2636.8,0.01751408]
[1646467076428,0.0024473,2637.0,2636.9,0.07773353]
[1646467080887,0.0024473,2637.0,2636.9,3.57773353]
[1646467081086,0.0024473,2637.0,2636.9,0.07773353]
[1646467085773,0.0024473,2637.0,2636.9,3.57773353]
[1646467088077,1.48568996,2637.5,2636.9,3.57773353]
[1646467088278,1.48568996,2637.5,2636.9,3.5]
[1646467089280,1.48568996,2637.5,2636.8,2.0420078]
[1646467089528,1.48568996,2637.5,2637.0,0.00270911]
[1646467090324,1.48568996,2637.5,2636.9,3.5]
[1646467090526,1.48568996,2637.5,2637.0,0.00270915]
[1646467091625,1.48568996,2637.5,2636.9,3.5]
[1646467091827,1.48568996,2637.5,2637.0,0.00270915]
[1646467092727,1.48568996,2637.5,2636.9,4.44855]
[1646467092928,1.48568996,2637.5,2637.0,0.00270952]
[1646467093968,1.48568996,2637.5,2636.9,4.44855]
[1646467094169,1.48568996,2637.5,2637.0,0.00270952]
[1646467095171,1.48568996,2637.5,2636.9,7.84346247]
[1646467095370,1.48568996,2637.5,2637.0,0.00270952]
[1646467096176,2.4893,2637.9,2637.0,0.00270952]
[1646467096376,2.4893,2637.9,2637.0,0.0028297]
[1646467096576,2.4893,2637.9,2637.0,0.00553917]
[1646467097321,1.0809146,2637.7,2637.0,0.00553917]
[1646467097521,1.0809146,2637.7,2637.0,0.0028297]
[1646467097821,1.0809146,2637.7,2637.0,0.0055393]
[1646467098824,1.0809146,2637.7,2637.0,0.0028297]
[1646467099024,1.0809146,2637.7,2637.0,0.00553924]
[1646467100029,1.0809146,2637.7,2637.0,0.0028297]
[1646467100228,1.0809146,2637.7,2637.0,0.00553924]
[1646467101084,1.77965137,2637.7,2637.0,0.00553924]
[1646467101279,1.77965137,2637.7,2637.0,0.0028297]
[1646467101475,1.77965137,2637.7,2637.0,0.00553924]
[1646467101876,1.13401981,2637.3,2637.0,0.00553924]
[1646467102076,0.69873677,2637.7,2637.0,0.00270954]
[1646467102276,0.69873677,2637.7,2637.1,3.45546503]
[1646467103281,0.69873677,2637.6,2637.1,3.45546503]
[1646467103683,0.69873677,2637.6,2637.2,3.5]
[1646467103885,2.10926095,2637.8,2637.2,6.91059352]
[1646467103886,1.1776,2637.8,2637.2,6.91059352]
[1646467104081,0.69873677,2638.0,2637.3,3.46220359]
[1646467104280,0.69873677,2638.0,2637.4,3.5]
[1646467104532,0.69873677,2638.1,2637.4,3.5]
[1646467104722,0.69873677,2638.1,2637.8,0.94818]
[1646467104922,2.10926095,2638.4,2637.8,0.94818]
[1646467104923,0.69873677,2638.3,2637.8,0.94818]
[1646467105121,0.00179534,2638.2,2637.8,0.94818]
[1646467105924,0.69873677,2638.3,2637.8,4.44818]
[1646467106327,0.00179554,2638.2,2637.8,4.44818]
[1646467107126,0.69873677,2638.3,2637.8,4.44818]
[1646467107325,0.00179485,2638.2,2637.8,4.44818]
[1646467107526,0.00179485,2638.2,2637.8,0.94818]
[1646467107926,0.00179485,2638.2,2637.8,3.43734198]
[1646467108127,0.00179485,2638.2,2637.9,0.07771586]
[1646467108377,0.69873677,2638.3,2637.8,3.28342671]
[1646467108575,0.00179485,2638.2,2637.9,0.07771686]
[1646467109176,0.70053162,2638.2,2637.8,3.28342671]
[1646467109577,0.69873677,2638.2,2637.8,3.28342671]
[1646467109777,1.11446677,2638.1,2637.8,3.28342671]
[1646467109978,1.53345473,2638.0,2637.8,3.28342671]
[1646467111878,1.53345473,2637.9,2637.8,3.28342671]
[1646467112123,1.53345473,2638.1,2637.8,3.28342671]
[1646467112325,1.53345473,2638.0,2637.8,3.28342671]
[1646467112622,0.00290761,2638.2,2637.9,0.07771632]
[1646467112823,0.00290761,2638.2,2637.9,3.57771632]
[1646467113023,0.00290761,2638.2,2638.0,0.07771632]
[1646467113224,1.52934433,2638.2,2638.0,0.07771632]
[1646467113424,1.52934433,2638.1,2638.0,0.07771632]
[1646467113824,0.00290771,2638.2,2637.9,3.57771632]
[1646467114026,0.00290771,2638.2,2638.0,0.07771632]
[1646467114426,1.52934433,2638.4,2638.0,0.07771632]
[1646467114625,0.93521925,2638.1,2638.0,0.07771632]
[1646467114826,2.46456358,2638.1,2638.0,0.07771632]
[1646467115028,1.52934433,2638.1,2638.0,0.07771632]
[1646467115228,0.0029077,2638.2,2637.9,3.57771632]
[1646467115428,0.0029077,2638.2,2638.0,3.50647458]
[1646467115627,1.52934433,2638.5,2638.0,3.50647458]
[1646467115878,0.00282048,2638.2,2638.1,0.07771632]
[1646467116277,1.53216481,2638.2,2638.1,0.07771632]
[1646467116479,0.00282048,2638.2,2638.1,0.07771632]
[1646467116879,1.52934433,2638.4,2638.1,0.07771632]
[1646467117081,0.00282046,2638.3,2638.0,3.42875826]
[1646467117883,1.53216479,2638.3,2638.0,3.42875826]
[1646467118083,1.52934433,2638.2,2638.0,3.42875826]
[1646467118283,1.52934433,2638.1,2638.0,3.42875826]
[1646467118484,0.00282046,2638.3,2638.0,3.50647022]
[1646467118685,0.00282046,2638.3,2638.0,3.42875826]
[1646467119290,1.52934433,2638.3,2638.1,3.5]
[1646467119541,0.00179566,2638.3,2638.2,0.07770678]
[1646467120330,1.52822219,2638.5,2638.2,0.07770678]
[1646467120530,2.29666,2639.0,2638.3,6.37830435]
[1646467120531,0.00096,2639.0,2638.3,6.37830435]
[1646467120733,1.52768804,2639.1,2638.4,3.57770678]
[1646467120934,1.52672804,2639.1,2638.5,3.5346819]
[1646467121137,0.00096,2639.2,2638.5,4.46367654]
[1646467121138,1.52672804,2639.0,2638.5,4.46367654]
[1646467121334,1.52672804,2639.1,2638.6,3.5]
[1646467121634,0.69873677,2639.3,2638.6,4.44784]
[1646467121635,1.52672804,2639.0,2638.6,4.44784]
[1646467121839,1.5285237,2638.9,2638.6,4.44784]
[1646467122034,1.52672804,2638.8,2638.6,4.44784]
[1646467122235,0.00179566,2638.9,2638.7,7.00918487]
[1646467122435,0.00179566,2638.9,2638.8,3.48776032]
[1646467122735,1.52678319,2639.1,2638.8,3.48776032]
[1646467122935,1.52678319,2639.1,2638.9,3.8792]
[1646467123135,1.52678319,2639.1,2638.8,3.48776032]
[1646467123136,1.52969326,2639.0,2638.8,5.43552032]
[1646467123374,0.00291007,2639.0,2638.8,5.43552032]
[1646467123976,1.51305684,2639.6,2638.9,3.60809975]
[1646467124177,0.00291005,2639.0,2638.9,3.60809975]
[1646467125177,1.51209684,2639.2,2638.9,3.60809975]
[1646467125478,0.00291003,2639.1,2638.9,3.60809975]
[1646467126480,1.51209684,2639.2,2638.9,3.60809975]
[1646467126682,0.00291001,2639.1,2638.9,3.60809975]
[1646467127724,1.51209684,2639.2,2638.9,3.60809975]
[1646467127920,0.00282271,2639.1,2638.9,3.60809975]
[1646467128321,0.00282271,2639.1,2638.9,1.9506616]
[1646467128524,0.00282271,2639.1,2638.8,1.89523]
[1646467128525,0.00282271,2639.1,2639.0,3.48357125]
[1646467128726,1.51209684,2639.2,2639.0,3.48357125]
[1646467129025,0.00282271,2639.1,2639.0,3.48357125]
[1646467130030,1.51209684,2639.2,2639.0,3.48357125]
[1646467130331,1.51491953,2639.2,2639.0,3.48357125]
[1646467131277,1.0,2639.1,2638.5,8.3201]
[1646467131576,1.51209684,2639.0,2638.5,8.3201]
[1646467131777,1.51209684,2638.9,2638.5,8.3201]
[1646467131980,1.51209684,2638.8,2638.5,3.5478]
[1646467132177,1.51209684,2638.7,2638.5,3.5478]
[1646467132376,0.00096,2639.3,2638.5,3.5478]
[1646467132777,0.00270159,2638.8,2638.5,3.5478]
[1646467133375,1.45839352,2638.8,2638.6,0.94791]
[1646467133577,1.45665193,2639.3,2638.6,0.94791]
[1646467133776,1.45576697,2639.2,2638.6,0.94791]
[1646467133977,0.00270159,2638.8,2638.6,0.94791]
[1646467134929,1.45576697,2639.0,2638.6,0.94791]
[1646467135127,0.00271674,2638.8,2638.6,0.94791]
[1646467135528,0.00271674,2638.8,2638.5,3.5478]
[1646467136127,1.45576697,2639.0,2638.5,3.5478]
[1646467136429,0.00271676,2638.8,2638.5,3.5478]
[1646467137232,1.45576697,2639.0,2638.6,0.94785]
[1646467137429,0.00271676,2638.8,2638.6,0.94785]
[1646467137831,0.00271676,2638.8,2638.6,1.89568]
[1646467138477,0.00096,2639.4,2638.6,1.89568]
[1646467138478,0.1887,2639.3,2638.6,1.84568]
[1646467138677,0.00271453,2638.8,2638.6,1.84568]
[1646467139573,0.00096,2639.1,2638.6,1.84568]
[1646467139776,1.45621764,2639.1,2638.6,1.84568]
[1646467139974,0.00271453,2638.8,2638.6,1.84568]
[1646467140781,1.45717764,2639.1,2638.6,1.84568]
[1646467140979,1.45621764,2639.1,2638.6,1.84568]
[1646467141179,0.00271453,2638.8,2638.6,1.84568]
[1646467142037,1.45621764,2639.1,2638.6,1.84568]
[1646467142230,0.00271485,2638.8,2638.6,1.84568]
[1646467143232,1.45621764,2639.1,2638.6,1.84568]
[1646467143432,0.00271485,2638.8,2638.6,1.84568]
[1646467144034,1.2028752,2638.8,2638.5,3.3584]
[1646467144333,1.45621764,2638.7,2638.5,3.3584]
[1646467144833,1.45621764,2638.7,2638.4,1.89567]
[1646467145036,1.45621764,2638.7,2638.3,0.06105115]
[1646467145633,4.95621764,2638.7,2638.0,1.1327]
[1646467145877,1.20016035,2638.8,2638.1,0.084744]
[1646467145878,1.45621764,2638.6,2638.1,0.084744]
[1646467146077,1.45621764,2638.5,2638.1,0.084744]
[1646467146277,1.02079636,2638.3,2638.1,0.084744]
[1646467146679,0.00271487,2638.6,2637.8,4.24613]
[1646467146881,1.4586843,2638.7,2638.0,0.94811]
[1646467147079,1.4586843,2638.7,2638.1,0.08478092]
[1646467147080,0.00271498,2638.3,2638.1,0.08478092]
[1646467148081,1.00905784,2638.4,2638.1,0.08478092]
[1646467148281,0.00271498,2638.3,2638.1,0.08478092]
[1646467148481,0.00191498,2638.3,2638.1,0.08478092]
[1646467149282,2.46918279,2638.4,2638.1,0.08478092]
[1646467149528,1.46012495,2638.3,2638.1,0.08478092]
[1646467149929,1.46012495,2638.3,2637.8,8.3267]
[1646467149930,1.46012495,2638.3,2638.2,0.08478092]
[1646467150336,1.46012495,2638.3,2637.9,0.08478092]
[1646467150535,1.46012495,2638.3,2637.8,7.1424]
[1646467150536,1.46012495,2638.3,2638.0,0.08478092]
[1646467150934,1.46012495,2638.3,2638.1,0.08478092]
[1646467151135,0.00096,2638.9,2638.2,0.08478092]
[1646467151337,1.46142942,2638.9,2638.2,0.08478092]
[1646467152137,1.15616977,2638.8,2638.2,1.03275092]
[1646467152336,1.46046942,2638.7,2638.3,0.08478092]
[1646467152536,1.46046942,2638.7,2638.0,1.89594]
[1646467152736,1.46046942,2638.7,2638.1,0.08476692]
[1646467153137,0.00291022,2638.6,2638.1,0.08476692]
[1646467153976,1.46046942,2638.7,2638.1,0.08476692]
[1646467154377,0.00291029,2638.5,2638.2,0.94799]
[1646467154576,0.00291029,2638.5,2638.3,0.08476692]
[1646467154980,0.00291029,2638.5,2638.4,0.08476692]
[1646467155279,1.46046942,2638.7,2638.4,0.08476692]
[1646467155482,1.46046942,2638.7,2638.5,0.08476692]
[1646467155681,1.46046942,2638.7,2638.4,0.94799]
[1646467155880,1.46046942,2638.7,2638.5,0.08475979]
[1646467156684,1.4633796,2638.7,2638.5,0.08475979]
[1646467156884,1.46046942,2638.6,2638.5,0.08475979]
[1646467157328,0.00291018,2638.7,2638.5,0.08475979]
[1646467157727,2.39143244,2638.8,2638.5,0.08475979]
[1646467157927,1.46332506,2638.7,2638.5,0.08475979]
[1646467158830,1.46046942,2638.7,2638.5,0.08475979]
[1646467159234,1.46332504,2638.7,2638.5,0.08475979]
[1646467160033,0.69873677,2639.0,2638.5,1.03264979]
[1646467160034,1.46046942,2638.6,2638.5,1.03264979]
[1646467160433,0.00285562,2638.7,2638.5,1.03264979]
[1646467160633,0.00285562,2638.7,2638.6,0.08481834]
[1646467161290,1.46046942,2638.8,2638.6,0.08481834]
[1646467161488,1.46317688,2638.8,2638.6,0.08481834]
[1646467161989,1.46046942,2638.7,2638.6,0.08481834]
[1646467162188,1.46046942,2638.7,2638.6,3.58481834]
[1646467162392,0.00270746,2638.8,2638.6,3.58481834]
[1646467162588,0.00096,2639.0,2638.7,0.08468646]
[1646467162589,1.46046942,2639.0,2638.7,0.08468646]
[1646467162788,0.00270746,2638.8,2638.7,0.08468646]
[1646467162987,0.00270746,2638.8,2638.7,4.73878007]
[1646467162988,1.46317688,2638.8,2638.7,4.73878007]
[1646467163188,0.00270746,2638.8,2638.7,4.73878007]
[1646467163391,0.00270746,2638.8,2638.7,3.58468646]
[1646467163592,1.46046942,2639.0,2638.7,3.58468646]
[1646467163790,0.69969677,2639.3,2638.8,0.08468646]
[1646467163791,1.46046942,2638.9,2638.8,0.08468646]
[1646467163991,1.46317685,2638.9,2638.8,0.08468646]
[1646467164190,1.46317685,2638.9,2638.6,0.08468646]
[1646467164390,1.46046942,2638.8,2638.6,0.08468646]
[1646467164626,1.46046942,2638.7,2638.6,0.08468646]
[1646467165027,1.67065614,2639.1,2638.6,3.58468646]
[1646467165028,0.00271582,2638.8,2638.6,3.58468646]
[1646467165226,0.00271582,2638.8,2638.7,0.08468646]
[1646467165426,1.46318524,2638.8,2638.7,0.08468646]
[1646467165830,0.00271582,2638.8,2638.7,0.08468646]
[1646467166033,1.46046942,2639.0,2638.7,0.08468646]
[1646467166230,0.0027158,2638.9,2638.8,0.08468646]
[1646467166432,0.0027158,2638.9,2638.5,0.08468646]
[1646467166634,0.0027158,2638.9,2638.6,0.08468646]
[1646467166832,0.0027158,2638.9,2638.7,0.08468646]
[1646467167032,0.0027158,2638.9,2638.5,0.08468646]
[1646467167232,2.15920619,2639.0,2638.5,0.08468646]
[1646467167433,0.00271578,2638.9,2638.5,0.08468646]
[1646467168578,2.15920619,2639.0,2638.5,0.08468646]
[1646467168776,0.00271459,2638.8,2638.5,0.08468646]
[1646467169576,2.15920619,2639.0,2638.5,0.08468646]
[1646467170176,0.00271461,2638.8,2638.6,0.08468646]
[1646467170476,0.69873677,2639.0,2638.7,0.08468646]
[1646467170677,0.15803277,2638.6,2638.4,3.5]
[1646467171085,0.15803277,2638.6,2638.3,1.89577]
[1646467171279,0.15803277,2638.6,2638.4,3.5]
[1646467172531,0.15803277,2638.6,2638.3,1.89577]
[1646467172727,0.15803277,2638.6,2638.4,3.5]
[1646467174529,0.15803277,2638.6,2638.3,1.89577]
[1646467174729,0.15803277,2638.6,2638.4,3.5]
[1646467177282,0.15803277,2638.6,2638.3,1.89577]
[1646467177483,0.15803277,2638.6,2638.4,3.5]
[1646467182833,0.15803277,2638.6,2638.4,4.5]
[1646467183035,0.15803277,2638.6,2638.5,3.5]
[1646467183277,0.15803277,2638.6,2638.5,4.5]
[1646467185581,0.00096,2639.0,2638.7,0.3792]
[1646467185582,0.00271435,2638.9,2638.7,0.3792]
[1646467185784,0.00271435,2638.9,2638.8,3.8792]
[1646467186185,0.00096,2639.6,2638.8,4.8792]
[1646467186385,0.69969677,2639.7,2638.9,6.4031]
[1646467186591,0.69969677,2639.7,2639.4,1.17093311]
[1646467186592,0.00096,2639.7,2639.4,1.17093311]
[1646467186785,0.69873677,2639.8,2639.4,2.11842311]
[1646467187634,0.69873677,2639.9,2639.4,2.11842311]
[1646467187835,0.00179034,2639.7,2639.5,3.5]
[1646467188134,0.00179034,2639.7,2639.5,4.44747]
[1646467188334,0.00179034,2639.7,2639.6,3.5]
[1646467188735,0.00179034,2639.7,2639.6,4.7239]
[1646467188935,0.00096,2640.0,2639.7,0.9473667]
[1646467189139,0.00811905,2640.2,2639.8,4.44739]
[1646467189335,0.00715905,2640.2,2639.8,4.44739]
[1646467189538,0.00715905,2640.2,2639.8,0.94739]
[1646467189935,0.00715905,2640.2,2639.9,0.87676156]
[1646467190137,0.69873677,2640.4,2639.9,1.82418156]
[1646467190337,0.00291131,2640.1,2639.6,1.2239]
[1646467190635,0.00291131,2640.1,2639.7,0.1054473]
[1646467191086,0.00291131,2640.1,2639.6,1.02749356]
[1646467191286,1.43876813,2640.1,2639.6,1.02749356]
[1646467191487,0.95259032,2639.9,2639.6,1.02749356]
[1646467191688,0.95259032,2639.9,2639.3,8.8684]
[1646467191689,1.43876813,2639.8,2639.3,8.8684]
[1646467191886,1.43876813,2639.8,2639.4,0.10546267]
[1646467192787,0.00291148,2639.7,2639.4,0.10546267]
[1646467193787,1.43876813,2639.7,2639.4,0.10546267]
[1646467193988,0.00291151,2639.7,2639.4,0.10546267]
[1646467194190,0.00291151,2639.7,2639.5,0.94752]
[1646467194387,0.00291151,2639.7,2639.6,0.10546267]
[1646467194832,0.00096,2640.0,2639.6,3.60546267]
[1646467195137,0.00179087,2639.8,2639.7,2.00009267]
[1646467195532,0.00179087,2639.8,2639.7,5.50009267]
[1646467196138,1.43774422,2640.1,2639.7,6.50009267]
[1646467196336,2.33555448,2640.7,2639.8,1.05279427]
[1646467196337,0.00179087,2639.9,2639.8,1.05279427]
[1646467196538,0.00179087,2639.9,2639.8,5.54948682]
[1646467196739,0.00179087,2639.9,2639.8,5.60215522]
[1646467197143,0.00179087,2639.9,2639.8,0.10546267]
[1646467197339,1.4329757,2640.2,2639.8,0.10546267]
[1646467197545,0.00179087,2640.0,2639.6,0.94731]
[1646467197737,0.00179087,2640.0,2639.7,0.10882596]
[1646467197738,1.43476657,2640.0,2639.7,0.10882596]
[1646467197938,0.00179087,2640.0,2639.7,0.10882596]
[1646467198586,0.00096,2640.2,2639.7,0.10882596]
[1646467198787,1.43184531,2640.2,2639.7,0.10882596]
[1646467198989,1.43184531,2640.1,2639.7,0.10882596]
[1646467199188,0.00096,2640.5,2639.7,0.10882596]
[1646467199588,1.43277377,2640.5,2639.7,0.10882596]
[1646467200090,0.00096,2640.5,2639.6,6.3421752]
[1646467200290,1.43180287,2640.4,2639.8,0.10863816]
[1646467200688,1.43180287,2640.5,2639.7,0.10863816]
[1646467200888,0.00096,2640.4,2639.7,0.10863816]
[1646467201895,0.00096,2640.4,2639.7,2.00330816]
[1646467202158,0.00096,2640.4,2640.0,0.94728]
[1646467202346,1.43180287,2640.5,2640.1,3.35026106]
[1646467202546,0.00291264,2640.2,2640.1,3.43240297]
[1646467202749,0.00291264,2640.2,2640.1,1.0]
[1646467202946,0.00291264,2640.2,2640.1,5.33105153]
[1646467203147,0.00291264,2640.2,2640.1,1.89439]
[1646467203348,0.6944517,2640.8,2640.1,2.89439]
[1646467203550,0.0029126,2640.3,2640.1,5.33103011]
[1646467203746,0.0029126,2640.3,2640.1,2.89439]
[1646467204148,0.0029126,2640.3,2640.2,0.12377299]
[1646467204551,0.6944517,2640.8,2640.2,0.12377299]
[1646467204748,0.00291256,2640.4,2640.1,2.89439]
[1646467204952,0.00291256,2640.4,2640.1,1.89439]
[1646467205153,0.00291256,2640.4,2640.1,2.89439]
[1646467205351,0.00291256,2640.4,2640.1,1.89439]
[1646467205552,0.00291256,2640.4,2640.1,2.89439]
[1646467205781,0.70610018,2640.8,2640.2,0.12377299]
[1646467205782,0.6944517,2640.8,2640.2,0.12377299]
[1646467205983,0.00291256,2640.4,2640.2,0.12377299]
[1646467206184,0.00291256,2640.4,2640.1,2.89439]
[1646467206785,0.00291256,2640.4,2640.3,1.20399611]
[1646467206986,0.00096,2640.8,2640.3,2.15119611]
[1646467207189,1.42861284,2641.1,2640.3,2.2749691]
[1646467207387,1.42765284,2641.1,2640.3,2.15119611]
[1646467208387,1.18991929,2640.9,2640.3,2.15119611]
[1646467208787,1.18991929,2640.9,2640.6,0.12377299]
[1646467208987,0.00096,2641.2,2640.3,2.15119611]
[1646467209187,0.00096,2641.2,2640.6,1.14145262]
[1646467209387,1.42690058,2641.2,2640.6,2.08863262]
[1646467209654,1.42690058,2641.1,2640.6,2.08863262]
[1646467209854,0.00096,2641.3,2640.6,2.08863262]
[1646467210053,1.42782338,2641.3,2640.6,2.08863262]
[1646467210561,0.00096,2641.3,2640.6,2.08863262]
[1646467210760,0.00284275,2641.1,2640.6,3.03572262]
[1646467210959,0.00284275,2641.1,2640.6,6.53572262]
[1646467211360,0.00284275,2641.1,2640.6,7.70145201]
[1646467211659,1.42590535,2641.4,2640.6,8.64848961]
[1646467211859,1.42590535,2641.4,2640.8,2.01772299]
[1646467212059,0.00284279,2641.0,2640.8,1.89395]
[1646467212259,0.00284279,2641.0,2640.8,5.39395]
[1646467212463,0.00284279,2641.0,2640.9,3.5]
[1646467212862,0.01136945,2641.4,2640.9,3.5]
[1646467213060,0.07338513,2641.8,2641.0,0.9468968]
[1646467213282,0.01136929,2641.5,2641.4,0.12377299]
[1646467213480,0.01136929,2641.5,2641.1,3.5]
[1646467213481,0.01136929,2641.5,2641.2,1.89372]
[1646467213684,0.01136929,2641.5,2641.3,3.5]
[1646467214281,0.00096,2642.2,2641.3,3.5]
[1646467214282,0.96220286,2642.2,2641.7,0.94673]
[1646467214482,1.42468117,2642.1,2641.8,1.14145262]
[1646467214680,1.0,2642.6,2641.9,3.5]
[1646467214681,0.18886,2642.5,2641.9,3.5]
[1646467214883,0.00096,2642.3,2642.0,0.12377299]
[1646467215086,1.42463921,2642.5,2641.8,1.14145262]
[1646467215286,1.42463921,2642.4,2641.8,1.14145262]
[1646467215488,1.42463921,2642.5,2641.8,1.14145262]
[1646467215690,0.00178384,2642.3,2641.9,2.83986]
[1646467215887,1.42642305,2642.3,2641.9,1.89324]
[1646467216188,1.42463921,2642.2,2641.9,1.89324]
[1646467216388,0.00178384,2642.3,2642.1,0.12377299]
[1646467216389,1.42642305,2642.3,2642.1,0.12377299]
[1646467216588,1.42323297,2642.2,2641.9,1.89324]
[1646467216788,0.00178515,2642.2,2641.9,1.89324]
[1646467217435,0.00178515,2642.2,2641.9,5.39324]
[1646467217638,1.42327199,2642.3,2641.9,1.89324]
[1646467217836,0.00096,2642.8,2642.1,0.12377299]
[1646467218036,1.424256,2642.8,2642.1,0.12377299]
[1646467218335,1.612456,2642.8,2641.9,1.89324]
[1646467218536,1.2239135,2642.3,2641.9,1.89324]
[1646467218736,1.42330201,2642.2,2641.9,1.89324]
[1646467218937,0.00096,2642.7,2641.9,1.89324]
[1646467219135,1.42369813,2642.8,2641.9,1.89324]
[1646467219536,1.42369813,2642.8,2642.4,0.12377299]
[1646467219737,1.42273813,2642.8,2642.4,0.12377299]
[1646467219937,1.02821788,2642.7,2642.6,1.14145262]
[1646467220246,1.02821788,2642.7,2641.9,1.89324]
[1646467220247,0.49130232,2642.5,2641.9,1.89324]
[1646467220437,1.42273813,2642.4,2641.9,1.89324]
[1646467220637,0.49130232,2642.5,2641.9,1.89324]
[1646467220890,1.40161809,2642.4,2642.2,0.12377299]
[1646467221392,1.40161809,2642.4,2641.9,1.89324]
[1646467221590,1.40445097,2642.4,2641.9,1.89324]
[1646467222290,1.40445097,2642.4,2641.7,0.25]
[1646467222491,1.40161809,2642.4,2642.2,0.12377299]
[1646467222691,1.40161809,2642.4,2641.7,0.25]
[1646467222895,0.00283294,2642.3,2641.6,7.9015]
[1646467223090,0.00379294,2642.3,2641.6,7.9015]
[1646467223692,0.00096,2642.3,2641.6,7.9015]
[1646467224093,0.00269528,2642.1,2642.0,0.12377299]
[1646467224534,0.00269528,2642.1,2641.6,7.9015]
[1646467224937,0.00096,2642.3,2641.6,7.9015]
[1646467225136,0.00269532,2642.0,2641.6,7.9015]
[1646467225639,0.00269532,2642.0,2641.8,0.12377299]
[1646467225840,0.00269532,2642.0,2641.7,0.94674]
[1646467226145,1.40257809,2642.3,2641.7,0.94674]
[1646467226339,0.0026953,2642.0,2641.7,0.94674]
[1646467226742,0.0026953,2642.0,2641.8,3.5]
[1646467226940,0.0026953,2642.0,2641.7,0.94674]
[1646467227344,1.40325356,2642.3,2641.7,0.94674]
[1646467227544,0.00271547,2642.0,2641.7,0.94674]
[1646467228590,0.00096,2642.2,2642.1,0.12377299]
[1646467228786,1.41619227,2642.4,2641.7,0.94674]
[1646467228985,1.40437201,2642.3,2641.7,0.94674]
[1646467229989,0.00271542,2642.1,2641.7,0.94674]
[1646467230187,0.00271542,2642.1,2642.0,0.12377299]
[1646467230388,0.00271542,2642.1,2642.0,1.07049299]
[1646467230691,0.00271542,2642.1,2642.0,4.57049299]
[1646467230988,1.40533201,2642.4,2642.0,5.51711299]
[1646467231188,1.40437201,2642.4,2642.0,5.39334]
[1646467231391,0.00271245,2642.2,2642.0,5.39334]
[1646467231687,0.00271245,2642.2,2642.1,3.62377299]
[1646467231887,0.00271245,2642.2,2642.1,0.12377299]
[1646467232131,1.40437201,2642.4,2642.1,3.62377299]
[1646467232332,0.00271242,2642.3,2642.1,3.62377299]
[1646467232532,0.00271242,2642.3,2642.0,1.89334]
[1646467232932,0.00271242,2642.3,2642.0,0.23775493]
[1646467233337,1.40437201,2642.4,2642.2,0.12377299]
[1646467233734,0.00271242,2642.3,2642.2,0.12377299]
[1646467234235,0.00271242,2642.3,2642.2,2.01682299]
[1646467234535,1.40437201,2642.4,2642.2,5.89602299]
[1646467234835,0.00178451,2642.4,2642.3,1.89285]
[1646467235035,0.00178451,2642.4,2642.3,2.39582299]
[1646467235639,0.49130232,2642.5,2642.3,2.01662299]
[1646467235896,0.49130232,2642.5,2642.3,2.8392939]
[1646467236093,0.49308683,2642.5,2642.4,0.94652]
[1646467236493,1.86831087,2642.5,2642.4,1.07029299]
[1646467236896,1.86652636,2642.5,2642.4,1.07029299]
[1646467241243,1.86652636,2642.5,2642.4,0.12377299]
[1646467241439,0.49130232,2642.5,2642.4,0.12377299]
[1646467242038,1.86911473,2642.5,2642.4,0.12377299]
[1646467242839,0.61911473,2642.5,2642.4,0.12377299]
[1646467243039,0.00096,2642.8,2642.4,0.12377299]
[1646467243306,0.0028242,2642.6,2642.3,1.89285]
[1646467243493,0.0028242,2642.6,2642.5,0.12377299]
[1646467243694,0.0028242,2642.6,2642.3,3.07988123]
[1646467243896,0.0028242,2642.6,2642.4,0.94652]
[1646467244696,0.0028242,2642.6,2642.4,4.44652]
[1646467244896,0.0028242,2642.6,2642.4,0.94652]
[1646467245096,0.0028242,2642.6,2642.5,0.12377299]
[1646467246801,0.00096,2643.2,2642.5,0.12377299]
[1646467247034,0.00096,2643.2,2642.4,0.94652]
[1646467247035,0.00245855,2642.7,2642.4,0.94652]
[1646467247937,0.00096,2643.0,2642.4,0.94652]
[1646467248137,0.00245855,2642.7,2642.4,0.94652]
[1646467248337,0.00245855,2642.7,2642.4,1.82813481]
[1646467248536,0.00245855,2642.7,2642.4,5.32813481]
[1646467248739,0.00245855,2642.7,2642.6,0.12377299]
[1646467249138,1.75846847,2643.1,2642.3,1.1469]
[1646467249339,0.00245852,2642.8,2642.3,1.1469]
[1646467250346,0.6934917,2643.0,2642.6,0.12377299]
[1646467250541,0.00248497,2642.7,2642.6,0.12377299]
[1646467251594,0.00096,2643.3,2642.6,0.12377299]
[1646467251793,0.00251712,2642.8,2642.6,0.12377299]
[1646467251992,0.00251712,2642.8,2642.7,1.07010299]
[1646467252190,0.00251712,2642.8,2642.7,2.96274299]
[1646467252791,0.95662073,2643.2,2642.7,2.96274299]
[1646467252792,0.94655375,2643.2,2642.7,2.96274299]
[1646467252992,0.94655375,2643.2,2642.7,1.30777446]
[1646467252993,0.00251709,2642.9,2642.7,1.30777446]
[1646467253193,0.00251709,2642.9,2642.7,2.25410696]
[1646467253994,0.94559375,2643.2,2642.7,3.20043696]
[1646467254197,0.00096,2643.3,2642.9,0.9463]
[1646467254396,0.01006677,2643.3,2642.9,0.9463]
[1646467255233,0.96977569,2643.2,2642.9,0.9463]
[1646467255438,0.97228077,2643.2,2642.9,0.9463]
[1646467256042,0.00250508,2643.2,2642.9,1.8926]
[1646467256239,0.6934917,2643.3,2642.9,1.8926]
[1646467256638,0.00250509,2643.2,2642.9,1.8926]
[1646467257337,1.05697207,2643.2,2642.9,1.8926]